bitfinex-derivatives/quotes_BNBF0:USTF0_20250807
["timestamp","ask_amount","ask_price","bid_price","bid_amount"]
[1754606096901,0.86518904,784.15,783.52,0.8598176]
[1754606097099,0.86518904,784.14,783.52,0.8598176]
[1754606097400,0.86518904,784.13,783.47,0.8598176]
[1754606097600,0.86518904,784.12,783.54,0.8598176]
[1754606097794,0.22194798,784.3,783.54,0.8598176]
[1754606098097,0.8641469,784.29,783.54,0.8598176]
[1754606098297,0.8641469,784.28,783.54,0.8598176]
[1754606098499,0.8641469,784.27,783.55,0.8598176]
[1754606098697,0.8641469,784.26,783.55,0.8598176]
[1754606098897,0.8641469,784.25,783.55,0.8598176]
[1754606099100,0.8641469,784.24,783.55,0.8598176]
[1754606099298,0.8641469,784.23,783.55,0.8598176]
[1754606099497,0.8641469,784.22,783.54,0.8598176]
[1754606099703,0.22194798,784.3,783.54,0.8598176]
[1754606099898,0.8598176,784.48,783.54,0.8598176]
[1754606100201,0.86356426,784.29,783.54,0.8598176]
[1754606100502,0.22192462,784.46,783.54,0.8598176]
[1754606100703,0.86351125,784.45,783.58,0.8598176]
[1754606100900,0.22192462,784.46,783.58,0.8598176]
[1754606101204,0.8598176,784.45,783.64,0.8598176]
[1754606101401,0.86348168,784.44,783.63,0.8598176]
[1754606101598,0.86348168,784.43,783.63,0.8598176]
[1754606101803,0.86348168,784.42,783.65,0.955]
[1754606102005,0.86313825,784.41,783.67,0.8598176]
[1754606102298,0.86313825,784.4,783.66,0.8598176]
[1754606102503,0.86313825,784.39,783.66,0.8598176]
[1754606102702,0.86313825,784.38,783.66,0.8598176]
[1754606102902,0.86313825,784.37,783.66,0.8598176]
[1754606103105,0.86313825,784.36,783.66,0.8598176]
[1754606103301,0.86313825,784.35,783.65,0.955]
[1754606103506,0.86313825,784.34,783.65,0.955]
[1754606103807,0.86313825,784.33,783.65,1.8148176]
[1754606104007,0.86255359,784.32,783.65,1.8148176]
[1754606104306,0.86255359,784.31,783.65,0.955]
[1754606104506,0.86255359,784.3,783.65,0.955]
[1754606104701,0.86255359,784.29,783.65,0.955]
[1754606104902,0.86255359,784.28,783.65,0.955]
[1754606105105,0.86255359,784.27,783.65,0.955]
[1754606105301,0.86255359,784.26,783.65,0.955]
[1754606105604,0.86255359,784.25,783.65,0.955]
[1754606105802,0.86255359,784.24,783.65,0.955]
[1754606106003,0.86255359,784.23,783.65,0.955]
[1754606106208,0.86255359,784.22,783.65,0.955]
[1754606106406,0.86255359,784.21,783.65,0.955]
[1754606106609,0.22192462,784.46,783.65,0.955]
[1754606106810,0.86191251,784.45,783.65,1.8148176]
[1754606107011,0.86191251,784.44,783.65,1.8148176]
[1754606107207,0.86191251,784.43,783.65,1.8148176]
[1754606107511,0.86191251,784.42,783.65,0.955]
[1754606107711,0.86191251,784.41,783.65,0.955]
[1754606107911,0.86191251,784.4,783.65,0.955]
[1754606108107,0.86191251,784.39,783.65,0.955]
[1754606108412,0.86191251,784.38,783.65,0.955]
[1754606108707,0.86159347,784.37,783.65,1.8148176]
[1754606108911,0.86159347,784.36,783.65,1.8148176]
[1754606109107,0.86159347,784.35,783.65,1.8148176]
[1754606109313,0.86159347,784.34,783.65,0.955]
[1754606109510,0.86159347,784.33,783.65,0.955]
[1754606109808,0.86159347,784.32,783.65,0.955]
[1754606110011,0.86148041,784.31,783.65,0.955]
[1754606110306,0.86148041,784.3,783.65,0.955]
[1754606110510,0.86148041,784.29,783.65,0.955]
[1754606110811,0.86148041,784.28,783.65,0.955]
[1754606111011,0.86148041,784.27,783.65,0.955]
[1754606111311,0.86148041,784.26,783.65,0.955]
[1754606111607,0.86148041,784.25,783.65,0.955]
[1754606111811,0.86148041,784.24,783.65,0.955]
[1754606112110,0.86148041,784.23,783.66,0.684]
[1754606112407,0.22192462,784.46,783.66,0.684]
[1754606112408,0.86148041,784.22,783.66,0.684]
[1754606112711,0.86148041,784.21,783.66,0.684]
[1754606113012,0.86148041,784.2,783.66,0.684]
[1754606113308,0.86148041,784.19,783.66,0.684]
[1754606113509,0.86148041,784.18,783.66,0.684]
[1754606113814,0.86148041,784.17,783.66,0.684]
[1754606114013,0.86148041,784.16,783.66,0.684]
[1754606114312,0.22192462,784.46,783.66,0.684]
[1754606114512,0.86104347,784.45,783.66,0.684]
[1754606114812,0.86104347,784.44,783.66,0.684]
[1754606115014,0.86104347,784.43,783.66,0.684]
[1754606115214,0.86104347,784.42,783.66,0.684]
[1754606115414,0.86104347,784.41,783.66,0.684]
[1754606115613,0.86104347,784.4,783.66,0.684]
[1754606115815,0.86104347,784.39,783.66,0.684]
[1754606116015,0.86104347,784.38,783.67,0.884]
[1754606116215,0.86104347,784.37,783.67,0.884]
[1754606116514,0.86104347,784.36,783.67,0.884]
[1754606116716,0.86104347,784.35,783.67,0.884]
[1754606117013,0.86104347,784.34,783.67,0.884]
[1754606117216,0.86104347,784.33,783.67,0.884]
[1754606117412,0.86104347,784.32,783.67,0.884]
[1754606117617,0.86104347,784.31,783.67,0.884]
[1754606117813,0.86104347,784.3,783.67,0.884]
[1754606118019,0.86104347,784.29,783.67,0.884]
[1754606118219,0.86104347,784.28,783.67,0.884]
[1754606118515,0.86104347,784.27,783.67,0.884]
[1754606118719,0.86095432,784.26,783.67,0.884]
[1754606118919,0.86095432,784.25,783.67,0.884]
[1754606119117,0.86095432,784.24,783.67,0.884]
[1754606119322,0.86095432,784.23,783.67,0.884]
[1754606119520,0.86095432,784.22,783.67,0.884]
[1754606119717,0.86095432,784.21,783.67,0.884]
[1754606120018,0.86095432,784.2,783.67,0.884]
[1754606120222,0.86095432,784.19,783.67,0.884]
[1754606120422,0.86095432,784.18,783.67,0.884]
[1754606120624,0.22192462,784.46,783.67,0.884]
[1754606120823,0.86087339,784.45,783.67,0.884]
[1754606121119,0.86087339,784.44,783.67,0.884]
[1754606121324,0.86087339,784.43,783.67,0.884]
[1754606121522,0.86087339,784.42,783.67,0.884]
[1754606121718,0.86087339,784.41,783.67,0.884]
[1754606121922,0.86087339,784.4,783.67,0.884]
[1754606122119,0.86087339,784.39,783.67,0.884]
[1754606122328,0.86087339,784.38,783.67,0.884]
[1754606122521,0.86087339,784.37,783.67,0.884]
[1754606122718,0.86087339,784.36,783.67,0.884]
[1754606122920,0.86087339,784.35,783.67,0.884]
[1754606123119,0.86087339,784.34,783.67,0.884]
[1754606123319,0.86087339,784.33,783.67,0.884]
[1754606123519,0.86087339,784.32,783.67,0.884]
[1754606123724,0.86087339,784.31,783.67,0.884]
[1754606123926,0.86087339,784.3,783.67,0.884]
[1754606124226,0.86087339,784.29,783.67,0.884]
[1754606124427,0.86087339,784.28,783.67,0.884]
[1754606124628,0.86075459,784.27,783.67,0.884]
[1754606124826,0.86075459,784.26,783.67,0.884]
[1754606125027,0.86075459,784.25,783.67,0.884]
[1754606125227,0.86075459,784.24,783.67,0.884]
[1754606125429,0.86075459,784.23,783.67,0.884]
[1754606125628,0.86075459,784.22,783.67,0.884]
[1754606125924,0.86075459,784.21,783.67,0.884]
[1754606126127,0.86075459,784.2,783.67,0.884]
[1754606126327,0.86075459,784.19,783.67,0.884]
[1754606126524,0.22192462,784.46,783.67,0.884]
[1754606126729,0.8607397,784.45,783.67,0.884]
[1754606126930,0.8607397,784.44,783.67,0.884]
[1754606127127,0.8607397,784.43,783.67,0.884]
[1754606127324,0.8607397,784.42,783.68,0.861]
[1754606127527,0.8607397,784.41,783.68,0.861]
[1754606127729,0.8607397,784.4,783.68,0.861]
[1754606127929,0.8607397,784.39,783.68,0.861]
[1754606128132,0.8607397,784.38,783.68,0.861]
[1754606128430,0.8607397,784.37,783.68,0.861]
[1754606128628,0.8607397,784.36,783.68,0.861]
[1754606128832,0.8607397,784.35,783.68,0.861]
[1754606129032,0.8607397,784.34,783.68,0.861]
[1754606129329,0.8607397,784.33,783.68,0.861]
[1754606129528,0.8607397,784.32,783.68,0.861]
[1754606129733,0.8607397,784.31,783.68,0.861]
[1754606129937,0.8607397,784.3,783.68,0.861]
[1754606130238,0.8607397,784.29,783.68,0.861]
[1754606130534,0.8607397,784.28,783.68,0.861]
[1754606130733,0.8607397,784.27,783.68,0.861]
[1754606131037,0.8607397,784.26,783.68,0.861]
[1754606131237,0.8607397,784.25,783.68,0.861]
[1754606131436,0.8607397,784.24,783.68,0.861]
[1754606131635,0.8607397,784.23,783.68,0.861]
[1754606131832,0.8607397,784.22,783.68,0.861]
[1754606132140,0.8607397,784.21,783.68,0.861]
[1754606132338,0.8607397,784.2,783.68,0.861]
[1754606132534,0.8607397,784.19,783.68,0.861]
[1754606132734,0.8607397,784.18,783.68,0.861]
[1754606132945,0.22192462,784.46,783.68,0.861]
[1754606133140,0.85913885,784.45,783.68,0.861]
[1754606133340,0.85913885,784.44,783.68,0.861]
[1754606133536,0.85913885,784.43,783.68,0.861]
[1754606133737,0.85913885,784.42,783.68,0.861]
[1754606134036,0.85913885,784.41,783.68,0.861]
[1754606134240,0.85913885,784.4,783.68,0.861]
[1754606134440,0.85913885,784.39,783.68,0.861]
[1754606134641,0.85913885,784.38,783.68,0.861]
[1754606134941,0.85913885,784.37,783.68,0.861]
[1754606135140,0.85913885,784.36,783.68,0.861]
[1754606135336,0.85913885,784.35,783.68,0.861]
[1754606135540,0.85913885,784.34,783.68,0.861]
[1754606135736,0.85913885,784.33,783.68,0.861]
[1754606135941,0.85913885,784.32,783.68,0.861]
[1754606136137,0.85913885,784.31,783.68,0.861]
[1754606136341,0.85913885,784.3,783.68,0.861]
[1754606136538,0.85913885,784.29,783.68,0.861]
[1754606136840,0.22192462,784.46,783.68,0.861]
[1754606136841,0.85913885,784.28,783.68,0.861]
[1754606137037,0.85913885,784.27,783.68,0.861]
[1754606137243,0.85913885,784.26,783.68,0.861]
[1754606137437,0.22192462,784.46,783.68,0.861]
[1754606137438,0.85913885,784.25,783.68,0.861]
[1754606137638,0.85913885,784.24,783.68,0.861]
[1754606137838,0.85913885,784.23,783.68,0.861]
[1754606138037,0.85913885,784.22,783.68,0.861]
[1754606138242,0.85913885,784.21,783.68,0.861]
[1754606138541,0.85913885,784.2,783.68,0.861]
[1754606138841,0.85913885,784.19,783.68,0.861]
[1754606139038,0.85913885,784.18,783.68,0.861]
[1754606139342,0.85913885,784.17,783.68,0.861]
[1754606139537,0.85913885,784.16,783.68,0.861]
[1754606139738,0.22192462,784.46,783.68,0.861]
[1754606140042,0.85985408,784.45,783.68,0.861]
[1754606140243,0.85985408,784.44,783.68,0.861]
[1754606140438,0.85985408,784.43,783.68,0.861]
[1754606140642,0.85985408,784.42,783.68,0.861]
[1754606140842,0.85985408,784.41,783.68,0.861]
[1754606141038,0.85985408,784.4,783.68,0.861]
[1754606141339,0.85985408,784.39,783.68,0.861]
[1754606141542,0.85985408,784.38,783.68,0.861]
[1754606141742,0.85985408,784.37,783.69,2.113]
[1754606141942,0.85985408,784.36,783.69,2.113]
[1754606142140,0.85985408,784.35,783.69,2.113]
[1754606142442,0.85985408,784.34,783.69,2.113]
[1754606142635,0.85985408,784.33,783.69,2.113]
[1754606142840,0.85985408,784.32,783.69,2.113]
[1754606143039,0.85985408,784.31,783.69,2.113]
[1754606143242,0.85985408,784.3,783.69,2.113]
[1754606143444,0.85985408,784.29,783.69,2.113]
[1754606143742,0.85985408,784.28,783.69,2.113]
[1754606143939,0.85985408,784.27,783.69,2.113]
[1754606144144,0.85985408,784.26,783.69,2.113]
[1754606144343,0.85985408,784.25,783.69,2.113]
[1754606144640,0.85985408,784.24,783.69,2.113]
[1754606144841,0.85985408,784.23,783.69,2.113]
[1754606145045,0.85985408,784.22,783.69,2.113]
[1754606145242,0.85985408,784.21,783.69,2.113]
[1754606145442,0.85985408,784.2,783.69,2.113]
[1754606145640,0.85985408,784.19,783.69,2.113]
[1754606145844,1.08174222,784.46,783.69,2.113]
[1754606146042,0.86079508,784.45,783.69,2.113]
[1754606146345,0.22192462,784.46,783.69,2.113]
[1754606146346,0.86079508,784.44,783.69,2.113]
[1754606146545,0.86079508,784.43,783.69,2.113]
[1754606146745,0.86079508,784.42,783.69,2.113]
[1754606146945,0.86079508,784.41,783.69,2.113]
[1754606147146,0.86079508,784.4,783.69,2.113]
[1754606147440,0.86079508,784.39,783.69,2.113]
[1754606147644,0.22192462,784.46,783.69,2.97066906]
[1754606147645,0.86079508,784.38,783.69,2.97066906]
[1754606147845,0.86125788,784.37,783.69,2.97066906]
[1754606148042,0.86125788,784.36,783.69,2.97066906]
[1754606148341,0.86125788,784.35,783.7,0.85766906]
[1754606148544,0.86125788,784.34,783.69,2.113]
[1754606148747,0.86125788,784.33,783.69,2.113]
[1754606148943,0.86125788,784.32,783.69,2.113]
[1754606149142,0.86125788,784.31,783.69,2.113]
[1754606149346,0.86125788,784.3,783.69,2.97066906]
[1754606149547,0.86125788,784.29,783.69,2.97066906]
[1754606149747,0.86125788,784.28,783.69,2.97066906]
[1754606149944,0.22192462,784.46,783.69,2.97066906]
[1754606149945,0.86125788,784.27,783.69,2.97066906]
[1754606150145,0.86125788,784.26,783.69,2.97066906]
[1754606150350,0.86125788,784.25,783.71,0.85766906]
[1754606150645,0.86125788,784.24,783.71,0.85766906]
[1754606150848,0.86221489,784.23,783.71,0.85766906]
[1754606151044,0.86221489,784.22,783.71,0.85766906]
[1754606151249,0.86221489,784.21,783.74,0.85766906]
[1754606151450,0.86221489,784.2,783.75,0.85766906]
[1754606151645,0.86221489,784.19,783.75,0.85766906]
[1754606151943,0.86221489,784.18,783.75,0.85766906]
[1754606152146,0.86272191,784.17,783.75,0.85766906]
[1754606152446,0.86272191,784.17,783.69,2.113]
[1754606152447,0.22192462,784.46,783.76,0.85766906]
[1754606152646,0.86270583,784.45,783.76,0.85766906]
[1754606152845,0.86270583,784.44,783.76,0.85766906]
[1754606153049,0.86270583,784.43,783.76,0.85766906]
[1754606153247,0.86270583,784.42,783.76,0.85766906]
[1754606153450,0.86270583,784.41,783.76,0.85766906]
[1754606153648,0.86270583,784.4,783.76,0.85766906]
[1754606153946,0.86270583,784.39,783.76,0.85766906]
[1754606154150,0.86270583,784.38,783.76,0.85766906]
[1754606154346,0.86270583,784.38,783.69,2.113]
[1754606154347,0.86270583,784.37,783.77,0.85766906]
[1754606154651,0.86270583,784.36,783.77,0.85766906]
[1754606154851,0.86270583,784.35,783.77,0.85766906]
[1754606155051,0.86270583,784.34,783.71,0.85766906]
[1754606155252,0.86270583,784.33,783.71,0.85766906]
[1754606155452,0.86270583,784.32,783.72,0.85766906]
[1754606155651,0.86270583,784.31,783.72,0.85766906]
[1754606155847,0.86270583,784.3,783.72,0.85766906]
[1754606156151,0.86270583,784.29,783.72,0.85766906]
[1754606156352,0.86270583,784.28,783.72,0.85766906]
[1754606156548,0.86270583,784.27,783.72,0.85766906]
[1754606156848,0.86270583,784.26,783.72,0.85766906]
[1754606157048,0.86270583,784.25,783.72,0.85766906]
[1754606157251,0.86270583,784.24,783.72,0.85766906]
[1754606157449,0.86270583,784.23,783.73,0.85766906]
[1754606157652,0.86270583,784.22,783.73,0.85766906]
[1754606157953,0.86270583,784.21,783.73,0.85766906]
[1754606158248,0.86270583,784.2,783.73,0.85766906]
[1754606158454,0.86270583,784.19,783.73,0.85766906]
[1754606158751,0.86270583,784.18,783.73,0.85766906]
[1754606158949,0.22192462,784.46,783.73,0.85766906]
[1754606159149,0.86324674,784.45,783.73,0.85766906]
[1754606159350,0.86324674,784.44,783.73,0.85766906]
[1754606159549,0.86324674,784.43,783.73,0.85766906]
[1754606159751,0.86324674,784.42,783.73,0.85766906]
[1754606159949,0.86324674,784.41,783.74,0.85766906]
[1754606160149,0.86324674,784.4,783.74,0.85766906]
[1754606160350,0.86324674,784.39,783.74,0.85766906]
[1754606160554,0.86324674,784.38,783.74,0.85766906]
[1754606160850,0.86324674,784.37,783.74,0.85766906]
[1754606161051,0.85766906,784.53,783.69,2.113]
[1754606161052,0.86324674,784.36,783.91,0.85766906]
[1754606161251,0.86324674,784.35,783.91,0.85766906]
[1754606161455,0.86427774,784.34,783.9,0.85766906]
[1754606161753,0.22188571,784.68,783.9,0.85766906]
[1754606161955,0.86409282,784.67,783.88,0.85766906]
[1754606162155,0.86409282,784.66,783.88,0.85766906]
[1754606162456,0.86409282,784.65,783.87,0.85766906]
[1754606162753,0.86409282,784.64,783.87,0.85766906]
[1754606162951,0.86409282,784.63,783.87,0.85766906]
[1754606163149,0.86409282,784.62,783.87,0.85766906]
[1754606163350,0.86409282,784.61,783.87,0.85766906]
[1754606163649,0.86409282,784.6,783.86,0.85766906]
[1754606163854,0.86409282,784.59,783.88,0.96]
[1754606164055,0.86409282,784.58,783.88,0.96]
[1754606164254,0.86409282,784.57,783.88,0.96]
[1754606164452,0.22188571,784.68,783.88,0.96]
[1754606164453,0.86409282,784.56,783.88,0.96]
[1754606164654,0.86409282,784.55,783.88,0.96]
[1754606164855,0.86409282,784.54,783.88,0.96]
[1754606165051,0.86409282,784.53,783.89,1.086]
[1754606165256,0.86409282,784.52,783.89,1.086]
[1754606165456,0.86409282,784.51,783.89,1.086]
[1754606165652,0.86409282,784.5,783.89,1.086]
[1754606165853,0.86409282,784.49,783.89,1.086]
[1754606166052,0.86409282,784.48,783.89,1.086]
[1754606166256,0.86409282,784.47,783.89,1.086]
[1754606166552,0.86409282,784.46,783.89,1.086]
[1754606166752,0.86409282,784.45,783.89,1.086]
[1754606167052,0.86409282,784.44,783.9,0.724]
[1754606167252,0.86409282,784.43,783.9,0.724]
[1754606167458,0.86409282,784.42,783.9,0.724]
[1754606167656,0.86409282,784.41,783.9,0.724]
[1754606167857,0.86409282,784.4,783.9,0.724]
[1754606168157,0.86409282,784.39,783.9,0.724]
[1754606168456,0.86409282,784.38,783.9,0.724]
[1754606168755,0.86409282,784.37,783.9,0.724]
[1754606169052,0.86409282,784.36,783.9,0.724]
[1754606169254,0.86409282,784.35,783.9,0.724]
[1754606169456,0.86409282,784.34,783.9,0.724]
[1754606169650,0.86409282,784.33,783.9,0.724]
[1754606169852,0.85766906,784.6,783.9,0.724]
[1754606169853,0.86409282,784.32,783.9,0.724]
[1754606170051,0.86409282,784.31,783.9,0.724]
[1754606170256,0.86409282,784.3,783.9,0.724]
[1754606170555,0.86409282,784.29,783.9,0.724]
[1754606170852,0.86409282,784.28,783.9,0.724]
[1754606171053,0.85766906,784.61,783.9,0.724]
[1754606171251,0.86274926,784.6,783.9,0.724]
[1754606171452,0.86274926,784.59,783.9,0.724]
[1754606171653,0.86274926,784.58,783.9,0.724]
[1754606171854,0.86274926,784.57,783.9,0.724]
[1754606172057,0.86274926,784.56,783.9,0.724]
[1754606172257,0.86274926,784.55,783.9,0.724]
[1754606172455,0.86274926,784.54,783.9,0.724]
[1754606172653,0.86274926,784.53,783.91,0.767]
[1754606172853,0.86274926,784.52,783.91,0.767]
[1754606173053,0.86274926,784.51,783.91,0.767]
[1754606173256,0.86274926,784.5,783.91,0.767]
[1754606173457,0.86268556,784.49,783.91,0.767]
[1754606173756,0.86268556,784.48,783.91,0.767]
[1754606173957,0.85766906,784.61,783.91,0.767]
[1754606173958,0.86268556,784.47,783.91,0.767]
[1754606174158,0.86268556,784.46,783.91,0.767]
[1754606174354,0.86268556,784.45,783.91,0.767]
[1754606174652,0.86268556,784.44,783.91,0.767]
[1754606174857,0.85766906,784.62,783.91,0.767]
[1754606174858,0.86268556,784.43,783.91,0.767]
[1754606175057,0.86268556,784.42,783.91,0.767]
[1754606175354,0.86268556,784.41,783.91,0.767]
[1754606175658,0.86268556,784.4,783.91,0.767]
[1754606175858,0.86268556,784.39,783.91,0.767]
[1754606176058,0.86268556,784.38,783.91,0.767]
[1754606176258,0.86268556,784.37,783.91,0.767]
[1754606176456,0.86268556,784.36,783.91,0.767]
[1754606176659,0.86268556,784.35,783.91,0.767]
[1754606176861,0.86268556,784.34,783.91,0.767]
[1754606177158,0.86268556,784.33,783.91,0.767]
[1754606177360,0.86268556,784.32,783.91,0.767]
[1754606177554,0.86268556,784.31,783.91,0.767]
[1754606177758,0.86268556,784.3,783.91,0.767]
[1754606177960,0.86268556,784.29,783.91,0.767]
[1754606178165,0.86268556,784.28,783.91,0.767]
[1754606178356,0.86268556,784.27,783.91,0.767]
[1754606178656,0.86268556,784.26,783.91,0.767]
[1754606178962,0.86268556,784.25,783.91,0.767]
[1754606179255,0.86268556,784.24,783.91,0.767]
[1754606179463,0.86268556,784.23,783.91,0.767]
[1754606179654,0.85766906,784.51,783.91,0.767]
[1754606179855,0.86265843,784.5,783.91,0.767]
[1754606180061,0.86265843,784.49,783.91,0.767]
[1754606180257,0.86265843,784.48,783.91,0.767]
[1754606180456,0.86265843,784.47,783.91,0.767]
[1754606180661,0.86265843,784.46,783.91,0.767]
[1754606180857,0.86265843,784.45,783.91,0.767]
[1754606181061,0.86265843,784.44,783.91,0.767]
[1754606181357,0.86265843,784.43,783.91,0.767]
[1754606181562,0.86265843,784.42,783.91,0.767]
[1754606181857,0.86265843,784.41,783.91,0.767]
[1754606182058,0.86265843,784.4,783.91,0.767]
[1754606182259,0.86265843,784.39,783.91,0.767]
[1754606182461,0.86265843,784.38,783.91,0.767]
[1754606182662,0.86265843,784.37,783.91,0.767]
[1754606182957,0.86265843,784.36,783.91,0.767]
[1754606183262,0.85766906,784.49,783.91,0.767]
[1754606183263,0.86265843,784.35,783.91,0.767]
[1754606183462,0.86265843,784.34,783.91,0.767]
[1754606183762,0.86265843,784.33,783.91,0.767]
[1754606184062,0.86265843,784.32,783.91,0.767]
[1754606184262,0.86265843,784.31,783.91,0.767]
[1754606184463,0.86265843,784.3,783.91,0.767]
[1754606184662,0.86265843,784.29,783.91,0.767]
[1754606184860,0.86265843,784.28,783.91,0.767]
[1754606185062,0.86265843,784.27,783.91,0.767]
[1754606185262,0.85766906,784.56,783.91,0.767]
[1754606185463,0.86257772,784.55,783.91,0.767]
[1754606185666,0.86257772,784.54,783.91,0.767]
[1754606185861,0.86257772,784.53,783.91,0.767]
[1754606186065,0.86257772,784.52,783.91,0.767]
[1754606186266,0.86257772,784.51,783.91,0.767]
[1754606186463,0.86257772,784.5,783.91,0.767]
[1754606186767,0.86257772,784.49,783.91,0.767]
[1754606187063,0.86257772,784.48,783.91,0.767]
[1754606187269,0.86251386,784.47,783.91,0.767]
[1754606187467,0.86251386,784.46,783.91,0.767]
[1754606187668,0.86251386,784.45,783.91,0.767]
[1754606187969,0.86251386,784.44,783.91,0.767]
[1754606188267,0.86251386,784.43,783.91,0.767]
[1754606188567,0.86251386,784.42,783.91,0.767]
[1754606188766,0.86251386,784.41,783.91,0.767]
[1754606188967,0.86251386,784.4,783.91,0.767]
[1754606189164,0.86251386,784.39,783.91,0.767]
[1754606189366,0.86251386,784.38,783.91,0.767]
[1754606189564,0.86251386,784.37,783.91,0.767]
[1754606189761,0.86251386,784.36,783.91,0.767]
[1754606189966,0.86251386,784.35,783.91,0.767]
[1754606190166,0.86251386,784.34,783.91,0.767]
[1754606190462,0.22188571,784.68,783.91,0.767]
[1754606190463,0.86251386,784.33,783.91,0.767]
[1754606190663,0.85766906,784.64,783.92,0.85766906]
[1754606190864,0.86318185,784.63,783.92,0.85766906]
[1754606191163,1.72085091,784.62,783.93,0.85766906]
[1754606191463,0.86318185,784.61,783.93,0.85766906]
[1754606191662,0.86318185,784.6,783.93,0.85766906]
[1754606191865,0.86318185,784.59,783.93,0.85766906]
[1754606192064,0.86318185,784.58,783.95,0.85766906]
[1754606192269,0.86318185,784.57,783.95,0.85766906]
[1754606192462,0.86318185,784.56,783.94,0.85766906]
[1754606192665,0.86318185,784.55,783.96,0.826]
[1754606192865,0.86318185,784.54,783.96,0.826]
[1754606193067,0.86318185,784.53,783.96,0.826]
[1754606193269,0.86318185,784.52,783.96,0.826]
[1754606193564,0.86318185,784.51,783.96,0.826]
[1754606193764,0.86318185,784.5,783.96,0.826]
[1754606193963,0.86318185,784.49,783.96,0.826]
[1754606194164,0.86318185,784.48,783.96,0.826]
[1754606194362,0.86318185,784.47,783.96,0.826]
[1754606194566,0.86318185,784.46,783.96,0.826]
[1754606194764,0.86318185,784.45,783.96,0.826]
[1754606194966,0.86318185,784.44,783.96,0.826]
[1754606195268,0.86318185,784.43,783.96,0.826]
[1754606195466,0.86318185,784.42,783.96,0.826]
[1754606195769,0.86318185,784.41,783.96,0.826]
[1754606195965,0.86318185,784.4,783.96,0.826]
[1754606196169,0.86318185,784.39,783.96,0.826]
[1754606196470,0.86318185,784.38,783.96,0.826]
[1754606196671,0.86318185,784.37,783.96,0.826]
[1754606196867,0.85766906,784.64,783.96,0.826]
[1754606197071,0.86317163,784.63,783.96,0.826]
[1754606197268,0.86317163,784.62,783.96,0.826]
[1754606197471,0.86317163,784.61,783.96,1.68366906]
[1754606197772,0.86317163,784.6,783.96,1.68366906]
[1754606197971,0.86317163,784.59,783.96,1.68366906]
[1754606198168,0.86317163,784.58,783.96,1.68366906]
[1754606198467,0.86317163,784.57,783.96,1.68366906]
[1754606198671,0.86317163,784.56,783.96,1.68366906]
[1754606198868,0.86317163,784.55,783.96,1.68366906]
[1754606199168,0.86317163,784.54,783.96,1.68366906]
[1754606199367,0.86317163,784.53,783.96,1.68366906]
[1754606199571,0.86317163,784.52,783.98,0.85766906]
[1754606199772,0.86317163,784.51,783.98,0.85766906]
[1754606200067,0.86317163,784.5,783.98,0.85766906]
[1754606200268,0.86317163,784.49,783.98,0.85766906]
[1754606200569,0.85766906,784.59,783.98,0.85766906]
[1754606200570,0.86317163,784.48,783.98,0.85766906]
[1754606200768,0.86317163,784.47,783.98,0.85766906]
[1754606201072,0.86317163,784.46,783.98,0.85766906]
[1754606201276,0.86317163,784.45,783.98,0.85766906]
[1754606201469,0.86317163,784.44,783.99,0.812]
[1754606201669,0.86317163,784.43,783.99,0.812]
[1754606201969,0.86317163,784.42,783.99,0.812]
[1754606202168,0.86317163,784.41,783.99,0.812]
[1754606202466,0.86317163,784.4,783.99,0.812]
[1754606202669,0.86317163,784.39,783.99,0.812]
[1754606202871,0.86317163,784.38,783.99,0.812]
[1754606203068,0.86317163,784.37,783.99,0.812]
[1754606203272,0.8634825,784.36,783.99,0.812]
[1754606203470,0.8634825,784.35,783.99,0.812]
[1754606203673,0.8634825,784.34,783.99,0.812]
[1754606203870,0.8634825,784.33,783.99,0.812]
[1754606204073,0.8634825,784.32,783.99,0.812]
[1754606204372,0.8634825,784.31,783.99,0.812]
[1754606204573,0.8634825,784.3,783.99,0.812]